fUSD/lending_fUSD_20240329
["ID","MTS","AMOUNT","RATE_DAILY","PERIOD"]
[320951663,1711721448227,-500.0,0.00049315,120]
[320951664,1711721448237,-500.0,0.00049315,120]
[320951665,1711721448247,-500.0,0.00049315,120]
[320951666,1711721448256,-509.38279301,0.00049315,120]
[320951667,1711721448266,-500.0,0.00049315,120]
[320951668,1711721448276,-500.0,0.00049315,120]
[320951669,1711721448285,-500.0,0.00049315,120]
[320951670,1711721448295,-507.02830714,0.00049315,120]
[320951671,1711721448305,-500.0,0.00049315,120]
[320951672,1711721448315,-500.0,0.00049315,120]
[320951673,1711721448325,-500.0,0.00049315,120]
[320951674,1711721448334,-500.0,0.00049315,120]
[320951675,1711721448344,-500.0,0.00049315,120]
[320951676,1711721448353,-500.0,0.00049315,120]
[320951677,1711721448363,-500.0,0.00049315,120]
[320951678,1711721448373,-519.53949794,0.00049315,120]
[320951679,1711721448383,-500.0,0.00049315,120]
[320951680,1711721448393,-500.0,0.00049315,2]
[320951681,1711721448402,-500.0,0.00049315,120]
[320951682,1711721448412,-500.0,0.00049315,120]
[320951683,1711721448421,-500.0,0.00049315,120]
[320951684,1711721448432,-500.0,0.00049315,120]
[320951685,1711721448442,-500.0,0.00049315,120]
[320951686,1711721448451,-500.0,0.00049315,120]
[320951687,1711721448460,-509.12904604,0.00049315,120]
[320951688,1711721448470,-500.0,0.00049315,120]
[320951689,1711721448480,-500.0,0.00049315,120]
[320951690,1711721448490,-500.0,0.00049315,120]
[320951691,1711721448499,-500.0,0.00049315,120]
[320951692,1711721448509,-500.0,0.00049315,120]
[320951693,1711721448518,-504.23353808,0.00049315,120]
[320951694,1711721448528,-500.0,0.00049315,120]
[320951695,1711721448537,-514.2792659,0.00049315,120]
[320951696,1711721448547,-500.0,0.00049315,120]
[320951697,1711721448558,-500.0,0.00049315,120]
[320951698,1711721448567,-518.44667341,0.00049315,120]
[320951699,1711721448577,-500.0,0.00049315,120]
[320951700,1711721448587,-500.0,0.00049315,120]
[320951701,1711721448597,-500.0,0.00049315,120]
[320951702,1711721448607,-500.0,0.00049315,120]
[320951703,1711721448616,-500.0,0.00049315,120]
[320951704,1711721448626,-500.0,0.00049315,120]
[320951705,1711721448635,-500.0,0.00049315,120]
[320951706,1711721448645,-520.58684068,0.00049315,120]
[320951707,1711721448654,-500.0,0.00049315,120]
[320951708,1711721448664,-500.0,0.00049315,120]
[320951709,1711721448674,-500.0,0.00049315,120]
[320951710,1711721448686,-500.0,0.00049315,120]
[320951711,1711721448696,-500.0,0.00049315,120]
[320951712,1711721448706,-500.0,0.00049315,120]
[320951713,1711721448715,-500.0,0.00049315,120]
[320951714,1711721448729,-505.8863094,0.00049315,120]
[320951715,1711721448740,-500.0,0.00049315,120]
[320951716,1711721448749,-500.0,0.00049315,120]
[320951717,1711721448759,-500.0,0.00049315,120]
[320951718,1711721448770,-500.0,0.00049315,120]
[320951719,1711721448780,-500.0,0.00049315,120]
[320951720,1711721448789,-500.0,0.00049315,120]
[320951721,1711721448799,-500.0,0.00049315,120]
[320951722,1711721448810,-500.0,0.00049315,120]
[320951723,1711721448820,-500.0,0.00049315,120]
[320951724,1711721448829,-500.0,0.00049315,120]
[320951725,1711721448839,-521.75569206,0.00049315,120]
[320951726,1711721448849,-500.0,0.00049315,120]
[320951727,1711721448859,-392.90088857,0.00049315,120]
[320951728,1711721448869,-539.4,0.00049315,120]
[320951729,1711721448878,-566.98643543,0.00049315,120]
[320951730,1711721448888,-500.0,0.00049315,120]
[320951731,1711721448898,-500.0,0.00049315,120]
[320951732,1711721448907,-500.0,0.00049315,120]
[320951733,1711721448920,-500.0,0.00049315,120]
[320951734,1711721448931,-511.48206717,0.00049315,120]
[320951735,1711721448943,-501.59037577,0.00049315,120]
[320951736,1711721448953,-519.67209712,0.00049315,120]
[320951737,1711721448963,-500.0,0.00049315,120]
[320951738,1711721448973,-500.0,0.00049315,120]
[320951739,1711721448983,-500.0,0.00049315,120]
[320951740,1711721448992,-513.98252064,0.00049315,120]
[320951741,1711721449003,-503.003162,0.00049315,120]
[320951742,1711721449014,-500.0,0.00049315,120]
[320951743,1711721449024,-500.0,0.00049315,120]
[320951744,1711721449033,-500.0,0.00049315,120]
[320951745,1711721449043,-500.0,0.00049315,120]
[320951746,1711721449054,-500.0,0.00049315,120]
[320951747,1711721449063,-500.0,0.00049315,120]
[320951748,1711721449074,-500.0,0.00049315,120]
[320951749,1711721449083,-500.0,0.00049315,120]
[320951750,1711721449093,-500.0,0.00049315,120]
[320951751,1711721449102,-503.09121301,0.00049315,120]
[320951752,1711721449112,-2000.0,0.00049315,30]
[320951753,1711721449121,-500.0,0.00049315,120]
[320951754,1711721449131,-500.0,0.00049315,120]
[320951755,1711721449141,-500.0,0.00049315,120]
[320951756,1711721449151,-188.61,0.00049315,120]
[320951757,1711721449160,-500.0,0.00049315,120]
[320951758,1711721449170,-502.83989962,0.00049315,120]
[320951759,1711721449181,-500.0,0.00049315,120]
[320951760,1711721449191,-500.0,0.00049315,120]
[320951761,1711721449201,-500.0,0.00049315,120]
[320951762,1711721449211,-500.0,0.00049315,120]
[320951763,1711721449220,-516.12861278,0.00049315,120]
[320951764,1711721449230,-500.0,0.00049315,120]
[320951765,1711721449240,-500.0,0.00049315,120]
[320951766,1711721449250,-500.0,0.00049315,120]
[320951767,1711721449260,-500.0,0.00049315,120]
[320951768,1711721449269,-500.0,0.00049315,120]
[320951769,1711721449279,-500.0,0.00049315,120]
[320951770,1711721449289,-500.0,0.00049315,120]
[320951771,1711721449299,-500.0,0.00049315,30]
[320951772,1711721449309,-500.0,0.00049315,120]
[320951773,1711721449319,-500.0,0.00049315,120]
[320951774,1711721449329,-500.0,0.00049315,2]
[320951775,1711721449339,-500.0,0.00049315,120]
[320951776,1711721449349,-512.64781112,0.00049315,120]
[320951777,1711721449358,-504.13272568,0.00049315,120]
[320951778,1711721449369,-516.48771165,0.00049315,120]
[320951779,1711721449379,-500.0,0.00049315,120]
[320951780,1711721449388,-507.10206926,0.00049315,120]
[320951781,1711721449398,-500.0,0.00049315,120]
[320951782,1711721449407,-500.0,0.00049315,120]
[320951783,1711721449649,-500.0,0.00049315,120]
[320951784,1711721449660,-500.0,0.00049315,120]
[320951785,1711721449669,-500.0,0.00049315,120]
[320951786,1711721449679,-500.0,0.00049315,120]
[320951787,1711721449688,-508.40289345,0.00049315,120]
[320951788,1711721449697,-504.33604223,0.00049315,120]
[320951789,1711721449706,-500.0,0.00049315,120]
[320951790,1711721449716,-500.0,0.00049315,120]
[320951791,1711721449725,-500.0,0.00049315,120]
[320951792,1711721449739,-517.26447023,0.00049315,120]
[320951793,1711721449748,-500.0,0.00049315,120]
[320951794,1711721449758,-500.0,0.00049315,120]
[320951795,1711721449767,-500.0,0.00049315,120]
[320951796,1711721449777,-500.0,0.00049315,120]
[320951797,1711721449786,-500.0,0.00049315,120]
[320951798,1711721449795,-500.0,0.00049315,120]
[320951799,1711721449804,-500.0,0.00049315,120]
[320951800,1711721449814,-500.0,0.00049315,120]
[320951801,1711721449824,-500.0,0.00049315,120]
[320951802,1711721449834,-500.0,0.00049315,120]
[320951803,1711721449843,-500.0,0.00049315,120]
[320951804,1711721449852,-500.0,0.00049315,120]
[320951805,1711721449861,-500.0,0.00049315,120]
[320951806,1711721449871,-526.84176422,0.00049315,120]
[320951807,1711721449880,-500.0,0.00049315,120]
[320951808,1711721449889,-500.0,0.00049315,120]
[320951809,1711721449898,-500.0,0.00049315,120]
[320951810,1711721449908,-500.0,0.00049315,120]
[320951811,1711721449917,-500.0,0.00049315,120]
[320951812,1711721449927,-500.0,0.00049315,120]
[320951813,1711721449937,-500.0,0.00049315,120]
[320951814,1711721449946,-500.0,0.00049315,120]
[320951815,1711721449956,-500.0,0.00049315,120]
[320951816,1711721449965,-500.0,0.00049315,120]
[320951817,1711721449974,-500.0,0.00049315,120]
[320951818,1711721449984,-515.54528582,0.00049315,120]
[320951819,1711721449993,-500.0,0.00049315,120]
[320951820,1711721450003,-500.0,0.00049315,120]
[320951821,1711721450013,-500.0,0.00049315,120]
[320951822,1711721450022,-500.0,0.00049315,120]
[320951823,1711721450032,-500.0,0.00049315,120]
[320951824,1711721450042,-500.0,0.00049315,120]
[320951825,1711721450051,-500.0,0.00049315,120]
[320951826,1711721450061,-500.0,0.00049315,120]
[320951827,1711721450070,-500.0,0.00049315,120]
[320951828,1711721450079,-500.0,0.00049315,120]
[320951829,1711721450088,-500.0,0.00049315,120]
[320951830,1711721450098,-500.0,0.00049315,120]
[320951831,1711721450108,-500.0,0.00049315,120]
[320951832,1711721450117,-500.0,0.00049315,120]
[320951833,1711721450127,-500.0,0.00049315,120]
[320951834,1711721450136,-500.0,0.00049315,120]
[320951835,1711721450146,-500.0,0.00049315,120]
[320951836,1711721450156,-500.0,0.00049315,120]
[320951837,1711721450165,-500.0,0.00049315,120]
[320951838,1711721450174,-500.0,0.00049315,120]
[320951839,1711721450186,-500.0,0.00049315,120]
[320951840,1711721450196,-500.0,0.00049315,120]
[320951841,1711721450205,-500.0,0.00049315,120]
[320951842,1711721450215,-513.63858096,0.00049315,120]
[320951843,1711721450224,-160.91784074,0.00049315,120]
[320951844,1711721450234,-500.0,0.00049315,120]
[320951845,1711721450244,-500.0,0.00049315,120]
[320951846,1711721450255,-500.0,0.00049315,120]
[320951847,1711721450264,-500.0,0.00049315,120]
[320951848,1711721450275,-500.0,0.00049315,120]
[320951849,1711721450285,-500.0,0.00049315,120]
[320951850,1711721450294,-500.0,0.00049315,120]
[320951851,1711721450303,-500.0,0.00049315,120]
[320951852,1711721450313,-500.0,0.00049315,120]
[320951853,1711721450322,-500.0,0.00049315,120]
[320951854,1711721450331,-514.15056645,0.00049315,120]
[320951855,1711721450341,-501.94970516,0.00049315,120]
[320951856,1711721450350,-519.46839831,0.00049315,120]
[320951857,1711721450360,-500.0,0.00049315,120]
[320951858,1711721450369,-500.0,0.00049315,120]
[320951859,1711721450379,-500.0,0.00049315,120]
[320951860,1711721450389,-500.0,0.00049315,120]
[320951861,1711721450398,-500.0,0.00049315,120]
[320951862,1711721450408,-520.51152739,0.00049315,120]
[320951863,1711721450417,-500.0,0.00049315,120]
[320951864,1711721450427,-500.0,0.00049315,120]
[320951865,1711721450439,-500.0,0.00049315,120]
[320951866,1711721450448,-500.0,0.00049315,120]
[320951867,1711721450458,-500.0,0.00049315,120]
[320951868,1711721450468,-500.0,0.00049315,120]
[320951869,1711721450478,-500.0,0.00049315,120]
[320951870,1711721450488,-500.0,0.00049315,120]
[320951871,1711721450498,-500.0,0.00049315,120]
[320951872,1711721450507,-500.0,0.00049315,120]
[320951873,1711721450517,-500.0,0.00049315,120]
[320951874,1711721450527,-500.0,0.00049315,120]
[320951875,1711721450536,-500.0,0.00049315,120]
[320951876,1711721450546,-268.74245448,0.00049315,120]
[320951877,1711721450556,-500.0,0.00049315,120]
[320951878,1711721450566,-500.0,0.00049315,120]
[320951879,1711721450575,-500.0,0.00049315,120]
[320951880,1711721450585,-500.0,0.00049315,120]
[320951881,1711721450594,-634.29,0.00049315,120]
[320951882,1711721450604,-634.29,0.00049315,120]
[320951883,1711721450613,-634.29,0.00049315,120]
[320951884,1711721450623,-634.29,0.00049315,120]
[320951885,1711721450633,-634.29,0.00049315,120]
[320951886,1711721450643,-634.29,0.00049315,120]
[320951887,1711721450653,-500.0,0.00049315,120]
[320951888,1711721450662,-634.29,0.00049315,120]
[320951889,1711721450671,-500.0,0.00049315,120]
[320951890,1711721450681,-634.29,0.00049315,120]
[320951891,1711721450691,-634.29,0.00049315,120]
[320951892,1711721450700,-634.29,0.00049315,120]
[320951893,1711721450710,-634.29,0.00049315,120]
[320951894,1711721450720,-634.29,0.00049315,120]
[320951895,1711721450730,-634.29,0.00049315,120]
[320951896,1711721450741,-500.0,0.00049315,120]
[320951897,1711721450750,-634.29,0.00049315,120]
[320951898,1711721450759,-634.29,0.00049315,120]
[320951899,1711721450769,-500.0,0.00049315,120]
[320951900,1711721450778,-634.29,0.00049315,120]
[320951901,1711721450788,-634.29,0.00049315,120]
[320951902,1711721450797,-634.29,0.00049315,120]
[320951903,1711721450806,-500.0,0.00049315,120]
[320951904,1711721450816,-500.0,0.00049315,120]
[320951905,1711721450826,-500.0,0.00049315,2]
[320951906,1711721450835,-504.21052555,0.00049315,2]
[320951907,1711721450844,-695.58,0.00049315,120]
[320951908,1711721450854,-500.0,0.00049315,120]
[320951909,1711721450865,-500.0,0.00049315,120]
[320951910,1711721450874,-500.0,0.00049315,120]
[320951911,1711721450883,-503.55982661,0.00049315,120]
[320951912,1711721450892,-1476.12,0.00049315,120]
[320951913,1711721450902,-500.0,0.00049315,120]
[320951914,1711721450911,-500.0,0.00049315,120]
[320951915,1711721450921,-500.0,0.00049315,120]
[320951916,1711721450930,-500.0,0.00049315,120]
[320951917,1711721450940,-501.67739848,0.00049315,120]
[320951918,1711721450950,-520.21895908,0.00049315,120]
[320951919,1711721450960,-900.44,0.00049315,120]
[320951920,1711721450970,-500.0,0.00049315,120]
[320951921,1711721450979,-500.0,0.00049315,120]
[320951922,1711721450989,-514.07159408,0.00049315,120]
[320951923,1711721450998,-504.11148672,0.00049315,120]
[320951924,1711721451009,-500.0,0.00049315,120]
[320951925,1711721451018,-500.0,0.00049315,120]
[320951926,1711721451027,-500.0,0.00049315,120]
[320951927,1711721451036,-607.78,0.00049315,120]
[320951928,1711721451046,-500.0,0.00049315,120]
[320951929,1711721451055,-546.4,0.00049315,120]
[320951930,1711721451065,-500.0,0.00049315,120]
[320951931,1711721451075,-500.0,0.00049315,120]
[320951932,1711721451085,-500.0,0.00049315,120]
[320951933,1711721451094,-1452.59,0.00049315,120]
[320951934,1711721451104,-480.31374952,0.00049315,120]
[320951935,1711721451114,-987.25,0.00049315,120]
[320951936,1711721451124,-500.0,0.00049315,120]
[320951937,1711721451134,-500.0,0.00049315,120]
[320951938,1711721451145,-599.43143715,0.00049315,120]
[320951939,1711721451155,-500.0,0.00049315,120]
[320951940,1711721451166,-500.0,0.00049315,120]
[320951941,1711721451176,-743.76,0.00049315,120]
[320951942,1711721451188,-500.0,0.00049315,120]
[320951943,1711721451199,-500.0,0.00049315,120]
[320951944,1711721451209,-500.0,0.00049315,120]
[320951945,1711721451219,-500.0,0.00049315,120]
[320951946,1711721451229,-500.0,0.00049315,120]
[320951947,1711721451239,-431.76610699,0.00049315,120]
[320951948,1711721451249,-500.0,0.00049315,120]
[320951949,1711721451259,-939.77,0.00049315,120]
[320951950,1711721451269,-500.0,0.00049315,120]
[320951951,1711721451279,-500.0,0.00049315,120]
[320951952,1711721451288,-500.0,0.00049315,120]
[320951953,1711721451298,-500.0,0.00049315,120]
[320951954,1711721451307,-500.0,0.00049315,120]
[320951955,1711721451316,-500.0,0.00049315,120]
[320951956,1711721451325,-894.21,0.00049315,120]
[320951957,1711721451334,-500.0,0.00049315,120]
[320951958,1711721451344,-500.0,0.00049315,120]
[320951959,1711721451353,-541.57012991,0.00049315,120]
[320951960,1711721451363,-500.0,0.00049315,120]
[320951961,1711721451372,-500.0,0.00049315,120]
[320951962,1711721451382,-1140.0,0.00049315,120]
[320951963,1711721451392,-500.0,0.00049315,120]
[320951964,1711721451402,-1032.63,0.00049315,120]
[320951965,1711721451412,-1627.67,0.00049315,120]
[320951966,1711721451422,-508.58,0.00049315,120]
[320951967,1711721451433,-500.0,0.00049315,120]
[320951968,1711721451443,-3279.75,0.00049315,120]
[320951969,1711721451453,-3061.85,0.00049315,120]
[320951970,1711721451463,-500.0,0.00049315,120]
[320951971,1711721451474,-500.0,0.00049315,120]
[320951972,1711721451483,-505.50947751,0.00049315,120]
[320951973,1711721451492,-500.0,0.00049315,120]
[320951974,1711721451501,-500.0,0.00049315,120]
[320951975,1711721451510,-502.33848273,0.00049315,120]
[320951976,1711721451520,-500.0,0.00049315,120]
[320951977,1711721451529,-522.71,0.00049315,120]
[320951978,1711721451539,-1319.96,0.00049315,120]
[320951979,1711721451550,-500.0,0.00049315,120]
[320951980,1711721451559,-500.0,0.00049315,120]
[320951981,1711721451569,-500.0,0.00049315,120]
[320951982,1711721451579,-15867.17,0.00049315,120]
[320951983,1711721451589,-1675.75,0.00049315,120]
[320951984,1711721451598,-1560.02,0.00049315,120]
[320951985,1711721451608,-505.0428754,0.00049315,120]
[320951986,1711721451617,-1118.96,0.00049315,120]
[320951987,1711721451626,-500.0,0.00049315,120]
[320951988,1711721451636,-500.0,0.00049315,120]
[320951989,1711721451645,-500.0,0.00049315,120]
[320951990,1711721451654,-500.0,0.00049315,120]
[320951991,1711721451664,-500.0,0.00049315,120]
[320951992,1711721451673,-500.0,0.00049315,120]
[320951993,1711721451685,-500.0,0.00049315,120]
[320951994,1711721451695,-967.68,0.00049315,120]
[320951995,1711721451705,-500.0,0.00049315,120]
[320951996,1711721451713,-500.0,0.00049315,120]
[320951997,1711721451724,-608.15,0.00049315,120]
[320951998,1711721451735,-1421.12,0.00049315,120]
[320951999,1711721451744,-500.0,0.00049315,120]
[320952000,1711721451755,-500.0,0.00049315,120]
[320952001,1711721451764,-352.79972245,0.00049315,120]
[320952002,1711721451774,-500.0,0.00049315,120]
[320952003,1711721451783,-500.0,0.00049315,120]
[320952004,1711721451793,-527.32475257,0.00049315,120]
[320952005,1711721451802,-796.35,0.00049315,120]
[320952006,1711721451811,-500.0,0.00049315,120]
[320952007,1711721451821,-500.0,0.00049315,120]
[320952008,1711721451830,-500.0,0.00049315,7]
[320952009,1711721451839,-583.97,0.00049315,120]
[320952010,1711721451849,-624.6657297,0.00049315,120]
[320952011,1711721451858,-500.0,0.00049315,120]
[320952012,1711721451868,-500.0,0.00049315,120]
[320952013,1711721451877,-500.0,0.00049315,120]
[320952014,1711721451886,-500.0,0.00049315,120]
[320952015,1711721451895,-1038.38,0.00049315,120]
[320952016,1711721451905,-7190.42,0.00049315,120]
[320952017,1711721451914,-1116.7,0.00049315,120]
[320952018,1711721451923,-500.0,0.00049315,120]
[320952019,1711721451988,-500.0,0.00049315,120]
[320952020,1711721451997,-500.0,0.00049315,120]
[320952021,1711721452006,-509.07,0.00049315,120]
[320952022,1711721452015,-500.0,0.00049315,120]
[320952023,1711721452024,-500.0,0.00049315,120]
[320952024,1711721452034,-500.0,0.00049315,120]
[320952025,1711721452044,-500.0,0.00049315,120]
[320952026,1711721452054,-500.0,0.00049315,120]
[320952027,1711721452064,-702.78,0.00049315,120]
[320952028,1711721452074,-500.0,0.00049315,120]
[320952029,1711721452083,-500.0,0.00049315,120]
[320952030,1711721452093,-514.78248016,0.00049315,120]
[320952031,1711721452102,-3016.23,0.00049315,120]
[320952032,1711721452112,-500.0,0.00049315,120]
[320952033,1711721452121,-500.0,0.00049315,120]
[320952034,1711721452130,-500.0,0.00049315,120]
[320952035,1711721452139,-1173.93,0.00049315,120]
[320952036,1711721452148,-500.0,0.00049315,120]
[320952037,1711721452157,-500.0,0.00049315,120]
[320952038,1711721452167,-1914.75,0.00049315,120]
[320952039,1711721452176,-1271.74,0.00049315,120]
[320952040,1711721452187,-500.0,0.00049315,120]
[320952041,1711721452196,-174.81189889,0.00049315,120]
[320952042,1711721452206,-500.0,0.00049315,120]
[320952043,1711721452215,-204.97781118,0.00049315,120]
[320952044,1711721452223,-620.53,0.00049315,120]
[320952045,1711721452232,-500.0,0.00049315,120]
[320952046,1711721452241,-656.72,0.00049315,120]
[320952047,1711721452250,-500.0,0.00049315,120]
[320952048,1711721452259,-500.0,0.00049315,120]
[320952049,1711721452268,-500.0,0.00049315,120]
[320952050,1711721452277,-500.0,0.00049315,120]
[320952051,1711721452287,-500.0,0.00049315,120]
[320952052,1711721452296,-503.77450253,0.00049315,120]
[320952053,1711721452305,-516.91394753,0.00049315,120]
[320952054,1711721452314,-2949.66,0.00049315,120]
[320952055,1711721452323,-500.0,0.00049315,120]
[320952056,1711721452332,-500.0,0.00049315,120]
[320952057,1711721452341,-500.0,0.00049315,120]
[320952058,1711721452350,-500.0,0.00049315,120]
[320952059,1711721452359,-500.0,0.00049315,120]
[320952060,1711721452368,-500.0,0.00049315,120]
[320952061,1711721452377,-500.0,0.00049315,120]
[320952062,1711721452387,-666.66,0.00049315,120]
[320952063,1711721452397,-508.0501297,0.00049315,120]
[320952064,1711721452406,-500.0,0.00049315,120]
[320952065,1711721452415,-500.0,0.00049315,120]
[320952066,1711721452424,-755.48,0.00049315,120]
[320952067,1711721452433,-500.0,0.00049315,120]
[320952068,1711721452443,-1139.02,0.00049315,120]
[320952069,1711721452452,-504.5,0.00049315,120]
[320952070,1711721452461,-500.0,0.00049315,120]
[320952071,1711721452470,-550.55,0.00049315,120]
[320952072,1711721452480,-2635.4,0.00049315,120]
[320952073,1711721452489,-500.0,0.00049315,120]
[320952074,1711721452498,-1127.22,0.00049315,120]
[320952075,1711721452507,-507.03098204,0.00049315,120]
[320952076,1711721452516,-571.73,0.00049315,120]
[320952077,1711721452525,-500.0,0.00049315,120]
[320952078,1711721452534,-561.64,0.00049315,120]
[320952079,1711721452543,-5797.8,0.00049315,120]
[320952080,1711721452552,-659.67,0.00049315,120]
[320952081,1711721452561,-500.0,0.00049315,120]
[320952082,1711721452570,-852.21,0.00049315,120]
[320952083,1711721452579,-515.7113183,0.00049315,120]
[320952084,1711721452588,-538.99,0.00049315,120]
[320952085,1711721452597,-777.84,0.00049315,120]
[320952086,1711721452607,-953.39,0.00049315,120]
[320952087,1711721452616,-502.25175716,0.00049315,120]
[320952088,1711721452625,-1011.18,0.00049315,120]
[320952089,1711721452634,-526.45997425,0.00049315,120]
[320952090,1711721452643,-500.0,0.00049315,120]
[320952091,1711721452652,-500.0,0.00049315,120]
[320952092,1711721452662,-500.0,0.00049315,120]
[320952093,1711721452671,-500.0,0.00049315,120]
[320952094,1711721452682,-500.0,0.00049315,120]
[320952095,1711721452691,-509.97738141,0.00049315,120]
[320952096,1711721452700,-831.93,0.00049315,120]
[320952097,1711721452709,-758.01,0.00049315,120]
[320952098,1711721452719,-500.0,0.00049315,120]
[320952099,1711721452728,-500.0,0.00049315,120]
[320952100,1711721452739,-308.40172798,0.00049315,120]
[320952101,1711721452749,-1019.27,0.00049315,120]
[320952102,1711721452759,-500.0,0.00049315,120]
[320952103,1711721452769,-500.0,0.00049315,120]
[320952104,1711721452778,-500.0,0.00049315,120]
[320952105,1711721452787,-1859.09,0.00049315,120]
[320952106,1711721452797,-1000.0,0.00049315,14]
[320952107,1711721452806,-500.0,0.00049315,120]
[320952108,1711721452816,-500.0,0.00049315,80]
[320952109,1711721452825,-1375.8,0.00049315,120]
[320952110,1711721452834,-1237.12,0.00049315,120]
[320952111,1711721452843,-1303.91,0.00049315,120]
[320952112,1711721452852,-505.9080685,0.00049315,120]
[320952113,1711721452861,-449.92453905,0.00049315,120]
[320952114,1711721452870,-500.0,0.00049315,120]
[320952115,1711721452879,-500.0,0.00049315,120]
[320952116,1711721452888,-500.0,0.00049315,120]
[320952117,1711721452897,-505.77753421,0.00049315,120]
[320952118,1711721452906,-2340.36,0.00049315,120]
[320952119,1711721452914,-507.71392809,0.00049315,120]
[320952120,1711721452923,-500.0,0.00049315,120]
[320952121,1711721452932,-1120.19,0.00049315,120]
[320952122,1711721452941,-599.9,0.00049315,120]
[320952123,1711721452950,-518.83,0.00049315,120]
[320952124,1711721452960,-1073.01,0.00049315,120]
[320952125,1711721452969,-1620.53,0.00049315,120]
[320952126,1711721452978,-2553.22,0.00049315,120]
[320952127,1711721452987,-2095.82,0.00049315,120]
[320952128,1711721452996,-500.0,0.00049315,120]
[320952129,1711721453005,-500.0,0.00049315,120]
[320952130,1711721453014,-508.12425933,0.00049315,120]
[320952131,1711721453024,-759.3,0.00049315,120]
[320952132,1711721453033,-1293.35,0.00049315,120]
[320952133,1711721453043,-500.0,0.00049315,120]
[320952134,1711721453053,-502.80415764,0.00049315,120]
[320952135,1711721453062,-500.0,0.00049315,120]
[320952136,1711721453071,-500.0,0.00049315,120]
[320952137,1711721453080,-500.0,0.00049315,120]
[320952138,1711721453090,-500.0,0.00049315,120]
[320952139,1711721453098,-508.84292618,0.00049315,120]
[320952140,1711721453107,-500.0,0.00049315,120]
[320952141,1711721453116,-500.0,0.00049315,120]
[320952142,1711721453125,-500.0,0.00049315,120]
[320952143,1711721453134,-500.0,0.00049315,120]
[320952144,1711721453143,-521.52,0.00049315,120]
[320952145,1711721453152,-500.0,0.00049315,120]
[320952146,1711721453161,-507.7745337,0.00049315,120]
[320952147,1711721453170,-3958.07,0.00049315,120]
[320952148,1711721453179,-528.84,0.00049315,120]
[320952149,1711721453189,-827.58,0.00049315,120]
[320952150,1711721453198,-500.0,0.00049315,120]
[320952151,1711721453207,-515.73160176,0.00049315,120]
[320952152,1711721453216,-500.0,0.00049315,120]
[320952153,1711721453225,-10208.37,0.00049315,120]
[320952154,1711721453234,-500.0,0.00049315,120]
[320952155,1711721453244,-500.0,0.00049315,120]
[320952156,1711721453253,-1483.13,0.00049315,120]
[320952157,1711721453262,-500.0,0.00049315,120]
[320952158,1711721453271,-500.0,0.00049315,120]
[320952159,1711721453280,-500.0,0.00049315,120]
[320952160,1711721453289,-709.97,0.00049315,120]
[320952161,1711721453298,-500.0,0.00049315,120]
[320952162,1711721453307,-500.0,0.00049315,120]